fUSD/lending_fUSD_20240423
["ID","MTS","AMOUNT","RATE_DAILY","PERIOD"]
[323278179,1713865844452,-787.31,0.00011581,2]
[323278180,1713865844463,-697.24,0.00011581,2]
[323278181,1713865844474,-500.0,0.00011581,2]
[323278182,1713865844484,-251.38223963,0.00011581,2]
[323278183,1713865844495,-500.0,0.00011581,2]
[323278184,1713865844506,-500.0,0.00011581,2]
[323278185,1713865844516,-500.0,0.00011581,2]
[323278186,1713865844527,-500.0,0.00011582,2]
[323278187,1713865844541,-927.6,0.00011582,2]
[323278188,1713865844552,-500.0,0.00011582,2]
[323278189,1713865844562,-744.41,0.00011582,2]
[323278190,1713865844573,-500.0,0.00011582,2]
[323278191,1713865844583,-593.16,0.00011582,2]
[323278192,1713865844594,-812.28,0.00011582,2]
[323278193,1713865844605,-500.0,0.00011582,2]
[323278194,1713865844615,-500.0,0.00011582,2]
[323278195,1713865844626,-500.0,0.00011582,2]
[323278196,1713865844636,-500.0,0.00011582,2]
[323278197,1713865844646,-500.0,0.00011582,2]
[323278198,1713865844657,-474.99119428,0.00011582,2]
[323278199,1713865844667,-500.0,0.00011582,2]
[323278200,1713865844678,-500.0,0.00011582,2]
[323278201,1713865844689,-500.0,0.00011582,2]
[323278202,1713865844701,-500.0,0.00011582,2]
[323278203,1713865844712,-500.0,0.00011582,2]
[323278204,1713865844722,-902.92,0.00011582,2]
[323278205,1713865844733,-808.6,0.00011582,2]
[323278206,1713865844743,-696.71,0.00011582,2]
[323278207,1713865844753,-500.0,0.00011582,2]
[323278208,1713865844764,-1230.68,0.00011582,2]
[323278209,1713865844776,-648.06189457,0.00011582,2]
[323278210,1713865844786,-794.21,0.00011582,2]
[323278211,1713865844797,-506.71028523,0.00011582,2]
[323278212,1713865844809,-500.0,0.00011582,2]
[323278213,1713865844823,-554.14,0.00011582,2]
[323278214,1713865844835,-500.0,0.00011582,2]
[323278215,1713865844847,-838.28,0.00011582,2]
[323278216,1713865844858,-500.0,0.00011582,2]
[323278217,1713865844869,-500.0,0.00011582,2]
[323278218,1713865844880,-500.0,0.00011582,2]
[323278219,1713865844895,-500.0,0.00011582,2]
[323278220,1713865844906,-1194.68,0.00011582,2]
[323278221,1713865844918,-347.22688917,0.00011582,2]
[323278222,1713865844929,-445.35831148,0.00011582,2]
[323278223,1713865844941,-500.0,0.00011582,2]
[323278224,1713865844954,-574.10426977,0.00011582,2]
[323278225,1713865844964,-500.0,0.00011582,2]
[323278226,1713865844976,-500.0,0.00011582,2]
[323278227,1713865844986,-500.0,0.00011582,2]
[323278228,1713865844997,-393.97560139,0.00011582,2]
[323278229,1713865845009,-1008.01,0.00011582,2]
[323278230,1713865845019,-500.0,0.00011582,2]
[323278231,1713865845030,-500.0,0.00011582,2]
[323278232,1713865845042,-500.0,0.00011582,2]
[323278233,1713865845053,-500.0,0.00011582,2]
[323278234,1713865845064,-604.27,0.00011582,2]
[323278235,1713865845076,-500.0,0.00011582,2]
[323278236,1713865845088,-602.99548104,0.00011582,2]
[323278237,1713865845099,-500.0,0.00011582,2]
[323278238,1713865845111,-500.0,0.00011582,2]
[323278239,1713865845122,-500.0,0.00011582,2]
[323278240,1713865845134,-500.0,0.00011582,2]
[323278241,1713865845145,-504.59339606,0.00011582,2]
[323278242,1713865845157,-738.95,0.00011582,2]
[323278243,1713865845167,-685.0,0.00011582,2]
[323278244,1713865845179,-500.0,0.00011582,2]
[323278245,1713865845191,-500.0,0.00011582,2]
[323278246,1713865845203,-500.0,0.00011582,2]
[323278247,1713865845214,-500.0,0.00011582,2]
[323278248,1713865845226,-877.42,0.00011582,2]
[323278249,1713865845237,-516.81,0.00011582,2]
[323278250,1713865845248,-500.0,0.00011585,2]
[323278251,1713865845259,-500.0,0.00011585,2]
[323278252,1713865845270,-444.3911085,0.00011586,2]
[323278253,1713865845281,-526.77797146,0.00011586,2]
[323278254,1713865845292,-500.0,0.00011586,2]
[323278255,1713865845303,-500.0,0.00011586,2]
[323278256,1713865845314,-623.12383961,0.00011586,2]
[323278257,1713865845325,-500.0,0.00011586,2]
[323278259,1713865845335,-500.0,0.00011586,2]
[323278260,1713865845346,-500.0,0.00011586,2]
[323278261,1713865845357,-500.0,0.00011588,2]
[323278262,1713865845367,-300.0,0.00011588,2]
[323278263,1713865845378,-552.73,0.00011589,2]
[323278265,1713865845389,-972.45,0.00011589,2]
[323278267,1713865845400,-1500.0,0.000116,2]
[323278268,1713865845411,-301.45775374,0.00011615,2]
[323278269,1713865845422,-150.0,0.00011619,2]
[323278270,1713865845432,-150.0,0.00011625,2]
[323278272,1713865845442,-1500.0,0.00011627,2]
[323278273,1713865845454,-150.0,0.00011631,2]
[323278274,1713865845465,-249.64766578,0.00011631,2]
[323278275,1713865845475,-1500.0,0.00011637,2]
[323278276,1713865845486,-173.80588472,0.00011655,2]
[323278277,1713865845497,-150.0,0.00011675,2]
[323278278,1713865845508,-1500.0,0.00011676,2]
[323278279,1713865845519,-500.0,0.00011687,2]
[323278280,1713865845530,-270.69323319,0.00011687,2]
[323278281,1713865845540,-150.0,0.00011691,2]
[323278282,1713865845552,-150.0,0.000117,2]
[323278283,1713865845563,-150.0,0.000117,2]
[323278284,1713865845573,-1400.0,0.000117,4]
[323278285,1713865845585,-150.0,0.00011725,2]
[323278286,1713865845595,-300.0,0.00011729,2]
[323278287,1713865845606,-153.11178116,0.00011731,2]
[323278288,1713865845617,-1500.0,0.00011742,2]
[323278289,1713865845628,-538.23,0.00011753,2]
[323278290,1713865845639,-1018.13,0.00011753,2]
[323278291,1713865845650,-1117.6,0.00011753,2]
[323278292,1713865845661,-500.0,0.00011753,2]
[323278293,1713865845672,-709.19,0.00011753,2]
[323278294,1713865845683,-500.0,0.00011753,2]
[323278295,1713865845695,-500.0,0.00011754,2]
[323278296,1713865845706,-771.08,0.00011754,2]
[323278297,1713865845717,-500.0,0.00011754,2]
[323278298,1713865845728,-500.0,0.00011754,2]
[323278299,1713865845739,-500.0,0.00011754,2]
[323278300,1713865845750,-515.19,0.00011754,2]
[323278301,1713865845762,-500.0,0.00011754,2]
[323278302,1713865845773,-500.0,0.00011754,2]
[323278303,1713865845784,-504.4335535,0.00011754,2]
[323278304,1713865845795,-500.0,0.00011754,2]
[323278305,1713865845808,-546.97,0.00011754,2]
[323278306,1713865845819,-1064.13,0.00011754,2]
[323278307,1713865845830,-500.0,0.00011754,2]
[323278308,1713865845841,-618.90849093,0.00011754,2]
[323278309,1713865845854,-500.0,0.00011754,2]
[323278310,1713865845865,-500.0,0.00011754,2]
[323278311,1713865845875,-1181.72,0.00011754,2]
[323278312,1713865845887,-500.0,0.00011754,2]
[323278313,1713865845898,-500.0,0.00011754,2]
[323278314,1713865845909,-329.041338,0.00011754,2]
[323278315,1713865845919,-500.0,0.00011754,2]
[323278316,1713865845931,-507.94123038,0.00011754,2]
[323278318,1713865845941,-500.0,0.00011754,2]
[323278320,1713865845953,-500.0,0.00011754,2]
[323278321,1713865845964,-500.0,0.00011754,2]
[323278322,1713865845976,-500.0,0.00011754,2]
[323278323,1713865845988,-500.0,0.00011754,2]
[323278324,1713865845999,-500.0,0.00011754,2]
[323278325,1713865846010,-500.0,0.00011754,2]
[323278326,1713865846020,-500.0,0.00011754,2]
[323278327,1713865846030,-500.0,0.00011754,2]
[323278328,1713865846041,-549.22850341,0.00011754,2]
[323278330,1713865846051,-506.35789469,0.00011754,2]
[323278332,1713865846062,-929.95,0.00011754,2]
[323278335,1713865846073,-500.0,0.00011754,2]
[323278337,1713865846083,-500.0,0.00011754,2]
[323278339,1713865846094,-500.0,0.00011754,2]
[323278341,1713865846105,-500.0,0.00011754,2]
[323278343,1713865846115,-500.0,0.00011754,2]
[323278345,1713865846126,-500.0,0.00011754,2]
[323278347,1713865846136,-500.0,0.00011754,2]
[323278349,1713865846147,-500.0,0.00011754,2]
[323278350,1713865846158,-500.0,0.00011754,2]
[323278351,1713865846444,-500.0,0.00011754,2]
[323278352,1713865846522,-4021.53,0.00011754,2]
[323278353,1713865846542,-500.0,0.00011754,2]
[323278354,1713865846551,-313.71234965,0.00011754,2]
[323278355,1713865846560,-500.0,0.00011754,2]
[323278356,1713865846569,-2975.72,0.00011754,2]
[323278357,1713865846578,-1250.64,0.00011754,2]
[323278358,1713865846588,-500.0,0.00011754,2]
[323278359,1713865846598,-500.0,0.00011754,2]
[323278360,1713865846607,-500.0,0.00011754,2]
[323278361,1713865846617,-597.43,0.00011754,2]
[323278362,1713865846626,-500.0,0.00011754,2]
[323278363,1713865846635,-500.0,0.00011754,2]
[323278364,1713865846644,-976.43,0.00011754,2]
[323278365,1713865846654,-500.0,0.00011754,2]
[323278366,1713865846663,-506.89035017,0.00011754,2]
[323278367,1713865846673,-574.96461919,0.00011754,2]
[323278368,1713865846682,-500.0,0.00011754,2]
[323278369,1713865846691,-500.0,0.00011754,2]
[323278370,1713865846701,-749.6,0.00011754,2]
[323278371,1713865846710,-352.40420208,0.00011754,2]
[323278372,1713865846719,-500.0,0.00011754,2]
[323278373,1713865846729,-500.0,0.00011754,2]
[323278374,1713865846738,-500.0,0.00011754,2]
[323278375,1713865846747,-500.0,0.00011754,2]
[323278376,1713865846756,-500.0,0.00011754,2]
[323278377,1713865846766,-1423.02,0.00011754,2]
[323278378,1713865846775,-500.0,0.00011754,2]
[323278379,1713865846785,-506.88789594,0.00011754,2]
[323278380,1713865846794,-500.0,0.00011754,2]
[323278381,1713865846803,-924.07,0.00011754,2]
[323278382,1713865846817,-500.0,0.00011754,2]
[323278383,1713865846827,-500.0,0.00011754,2]
[323278384,1713865846837,-485.53135173,0.00011754,2]
[323278385,1713865846846,-1042.2,0.00011754,2]
[323278386,1713865846856,-500.0,0.00011754,2]
[323278387,1713865846866,-1100.55,0.00011754,2]
[323278388,1713865846875,-500.0,0.00011754,2]
[323278389,1713865846885,-500.0,0.00011754,2]
[323278390,1713865846895,-611.81012403,0.00011754,2]
[323278391,1713865846905,-500.0,0.00011754,2]
[323278392,1713865846914,-500.0,0.00011754,2]
[323278393,1713865846923,-450.68402175,0.00011754,2]
[323278394,1713865846932,-6184.14,0.00011754,2]
[323278395,1713865846941,-288.81471377,0.00011754,2]
[323278396,1713865846952,-150.0,0.00011754,2]
[323278397,1713865846962,-526.58,0.00011754,2]
[323278398,1713865846970,-500.0,0.00011754,2]
[323278399,1713865846980,-1366.22,0.00011754,2]
[323278400,1713865846989,-2831.05,0.00011754,2]
[323278401,1713865846998,-1034.83,0.00011754,2]
[323278402,1713865847007,-500.0,0.00011754,2]
[323278403,1713865847016,-2240.68,0.00011754,2]
[323278404,1713865847025,-500.0,0.00011754,2]
[323278405,1713865847035,-784.16,0.00011754,2]
[323278406,1713865847044,-500.0,0.00011754,2]
[323278407,1713865847054,-500.0,0.00011754,2]
[323278408,1713865847064,-500.0,0.00011754,2]
[323278409,1713865847073,-632.08477396,0.00011754,2]
[323278410,1713865847083,-500.0,0.00011754,2]
[323278411,1713865847092,-2361.37,0.00011754,2]
[323278412,1713865847102,-500.0,0.00011754,2]
[323278413,1713865847111,-536.75,0.00011754,2]
[323278414,1713865847121,-1342.1,0.00011754,2]
[323278415,1713865847130,-1174.44,0.00011754,2]
[323278416,1713865847139,-5107.72,0.00011754,2]
[323278417,1713865847149,-500.0,0.00011754,2]
[323278418,1713865847158,-275.08333795,0.00011754,2]
[323278419,1713865847168,-500.0,0.00011754,2]
[323278420,1713865847177,-1118.48,0.00011754,2]
[323278421,1713865847186,-4447.47,0.00011754,2]
[323278422,1713865847195,-500.0,0.00011754,2]
[323278423,1713865847204,-500.0,0.00011754,2]
[323278424,1713865847213,-764.15,0.00011754,2]
[323278425,1713865847223,-1115.59,0.00011754,2]
[323278426,1713865847232,-2553.33,0.00011754,2]
[323278427,1713865847241,-5607.48,0.00011754,2]
[323278428,1713865847250,-503.93,0.00011754,2]
[323278429,1713865847260,-208.65042021,0.00011754,2]
[323278430,1713865847269,-500.0,0.00011754,2]
[323278431,1713865847279,-500.0,0.00011754,2]
[323278432,1713865847288,-500.0,0.00011754,2]
[323278433,1713865847298,-500.0,0.00011754,2]
[323278434,1713865847307,-500.0,0.00011754,2]
[323278435,1713865847317,-500.0,0.00011754,2]
[323278436,1713865847326,-9928.94,0.00011754,2]
[323278437,1713865847335,-500.0,0.00011754,2]
[323278438,1713865847344,-500.0,0.00011754,2]
[323278439,1713865847353,-500.0,0.00011754,2]
[323278440,1713865847363,-500.0,0.00011754,2]
[323278441,1713865847372,-500.0,0.00011754,2]
[323278442,1713865847381,-1264.96,0.00011754,2]
[323278443,1713865847391,-1215.23,0.00011754,2]
[323278444,1713865847400,-630.60210235,0.00011754,2]
[323278445,1713865847410,-10288.19,0.00011754,2]
[323278446,1713865847419,-500.0,0.00011754,2]
[323278447,1713865847428,-500.0,0.00011754,2]
[323278448,1713865847437,-500.0,0.00011754,2]
[323278449,1713865847448,-3592.21,0.00011754,2]
[323278450,1713865847458,-1667.64,0.00011754,2]
[323278451,1713865847467,-500.0,0.00011754,2]
[323278452,1713865847477,-500.0,0.00011754,2]
[323278453,1713865847487,-558.77,0.00011754,2]
[323278454,1713865847495,-500.0,0.00011754,2]
[323278455,1713865847505,-500.0,0.00011754,2]
[323278456,1713865847514,-500.0,0.00011754,2]
[323278457,1713865847523,-500.0,0.00011754,2]
[323278458,1713865847533,-500.0,0.00011754,2]
[323278459,1713865847542,-500.0,0.00011754,2]
[323278460,1713865847551,-11274.13,0.00011754,2]
[323278461,1713865847560,-500.0,0.00011754,2]
[323278462,1713865847569,-500.0,0.00011754,2]
[323278463,1713865847578,-500.0,0.00011754,2]
[323278464,1713865847588,-1141.05,0.00011754,2]
[323278465,1713865847596,-571.81,0.00011754,2]
[323278466,1713865847605,-971.47851888,0.00011754,2]
[323278467,1713865847966,-1641.02539894,0.00011754,2]
[323278468,1713865847978,-3944.56608218,0.00011754,2]
[323278469,1713865847987,-644.23230113,0.00011754,2]
[323278470,1713865847996,-500.0,0.00011754,2]
[323278471,1713865848005,-500.0,0.00011754,2]
[323278472,1713865848014,-500.0,0.00011754,2]
[323278473,1713865848024,-340.32406159,0.00011754,2]
[323278474,1713865848033,-3958.39,0.00011754,2]
[323278475,1713865848042,-500.0,0.00011754,2]
[323278476,1713865848051,-500.0,0.00011754,2]
[323278477,1713865848060,-2612.48787788,0.00011754,2]
[323278478,1713865848713,23900.0,0.00010654,2]
[323278479,1713865849102,-260.04074274,0.0001148,2]
[323278480,1713865849122,-1448.49673593,0.0001148,2]
[323278481,1713865849300,-2610.65618671,0.0001148,2]
[323278482,1713865849312,-390.446835,0.0001148,2]
[323278483,1713865849324,-931.13278959,0.0001148,2]
[323278484,1713865849344,-741.79168711,0.0001148,2]
[323278485,1713865849367,-3426.81378788,0.0001148,2]
[323278486,1713866001153,748.81,0.00010872,2]
[323278487,1713866003162,218.06,0.00010786,2]
[323278488,1713866026708,560.88,0.0001074,2]
[323278491,1713866112951,156.09,0.00010749,2]
[323278492,1713866113068,156.09,0.00010762,2]
[323278493,1713866113270,156.09,0.00010776,2]
[323278494,1713866113475,156.09,0.00010789,2]
[323278495,1713866113674,156.09,0.00010802,2]
[323278498,1713866154930,158.4,0.00010822,2]
[323278505,1713866270068,627.16,8.829e-05,2]
[323278506,1713866270431,627.16,0.00011093,2]
[323278508,1713866292564,1805.82,0.00010747,2]
[323278510,1713866390869,7945.66,0.00010692,2]
[323278529,1713866519858,551.29,0.00010513,2]
[323278535,1713866763174,564.44,8.556e-05,2]
[323278536,1713866763485,564.44,0.0001082,2]
[323278537,1713866780485,1203.54,0.00010474,2]
[323278680,1713867013295,558.96,0.00010474,2]
[323278692,1713867031958,-3080.89024229,0.00011278,2]
[323278693,1713867031967,-1022.62397374,0.00011279,2]
[323278696,1713867032220,-160.15675068,0.0001128,2]
[323278697,1713867032231,-160.15675067,0.0001133,2]
[323278698,1713867032241,-1000.0,0.00011379,2]
[323278699,1713867032250,-160.15675067,0.00011379,2]
[323278700,1713867032259,-230.38160352,0.00011379,2]
[323278702,1713867032268,-150.0,0.00011379,2]
[323278704,1713867032279,-4726.9461,0.0001138,2]
[323278706,1713867032288,-10000.0,0.0001138,2]
[323278708,1713867032297,-150.0,0.00011388,2]
[323278710,1713867032306,-150.0,0.0001139,2]
[323278712,1713867032315,-150.0,0.00011393,2]
[323278713,1713867032324,-150.99,0.00011393,2]
[323278715,1713867032334,-150.0,0.00011399,2]
[323278718,1713867032343,-150.0,0.00011404,2]
[323278719,1713867032352,-150.0,0.00011424,2]
[323278720,1713867032362,-150.0,0.00011425,2]
[323278721,1713867032371,-290.01,0.00011425,2]
[323278722,1713867032381,-150.0,0.00011428,2]
[323278723,1713867032391,-150.0,0.00011439,2]
[323278724,1713867032400,-150.0,0.00011439,2]
[323278725,1713867032409,-150.0,0.00011444,2]
[323278726,1713867032418,-182.48888618,0.00011468,2]
[323278727,1713867032429,-444.3911085,0.00011476,2]
[323278728,1713867032438,-640.7298786,0.00011477,2]
[323278729,1713867032447,-866.47338512,0.00011477,2]
[323278730,1713867032458,-313.71234965,0.00011477,2]
[323278731,1713867032467,-2851.73,0.00011477,2]
[323278732,1713867032476,-935.74,0.00011477,2]
[323278733,1713867032485,-500.0,0.00011477,2]
[323278734,1713867032495,-885.57,0.00011477,2]
[323278735,1713867032504,-2147.32,0.00011477,2]
[323278736,1713867032512,-500.0,0.00011477,2]
[323278737,1713867032522,-500.0,0.00011477,2]
[323278738,1713867032532,-500.0,0.00011477,2]
[323278739,1713867032541,-2713.09,0.00011477,2]
[323278740,1713867032551,-514.39,0.00011477,2]
[323278741,1713867032560,-500.0,0.00011477,2]
[323278742,1713867032570,-1286.18,0.00011477,2]
[323278743,1713867032580,-5373.83,0.00011477,2]
[323278744,1713867032589,-2262.98,0.00011477,2]
[323278745,1713867032598,-4262.16,0.00011477,2]
[323278746,1713867032608,-500.0,0.00011477,2]
[323278747,1713867032617,-275.08333795,0.00011477,2]
[323278748,1713867032626,-9515.23,0.00011477,2]
[323278749,1713867032638,-500.0,0.00011477,2]
[323278750,1713867032647,-829.94,0.00011477,2]
[323278751,1713867032657,-1164.59,0.00011477,2]
[323278752,1713867032666,-500.0,0.00011477,2]
[323278753,1713867032676,-3442.54,0.00011477,2]
[323278754,1713867032685,-500.0,0.00011477,2]
[323278755,1713867032694,-1212.26,0.00011477,2]
[323278756,1713867032706,-500.0,0.00011477,2]
[323278757,1713867032715,-500.0,0.00011477,2]
[323278758,1713867032724,-6051.12,0.00011477,2]
[323278759,1713867032733,-500.0,0.00011477,2]
[323278760,1713867032743,-500.0,0.00011477,2]
[323278761,1713867032752,-6259.71596966,0.00011477,2]
[323278762,1713867032766,-756.03810701,0.00011477,2]
[323278763,1713867032778,-803.60000004,0.00011477,2]
[323278764,1713867032789,-911.68,0.00011477,2]
[323278765,1713867032808,-2073.34592329,0.00011477,2]
[323278766,1713867032817,-535.49,0.00011477,2]
[323278767,1713867032826,-500.0,0.00011477,2]
[323278768,1713867032835,-1801.08,0.00011477,2]
[323278769,1713867032844,-500.0,0.00011477,2]
[323278770,1713867032854,-547.98,0.00011477,2]
[323278771,1713867032863,-500.0,0.00011477,2]
[323278772,1713867032872,-3628.52,0.00011477,2]
[323278773,1713867032881,-878.11,0.00011477,2]
[323278774,1713867032890,-500.0,0.00011477,2]
[323278775,1713867032899,-42918.96,0.00011477,2]
[323278776,1713867032908,-1071.04,0.00011477,2]
[323278777,1713867032917,-3853.97,0.00011477,2]
[323278778,1713867032926,-538.19,0.00011477,2]
[323278779,1713867032935,-500.0,0.00011477,2]
[323278780,1713867032944,-515.8,0.00011477,2]
[323278781,1713867032955,-500.0,0.00011478,2]
[323278782,1713867032964,-771.08,0.00011478,2]
[323278783,1713867032973,-500.0,0.00011478,2]
[323278784,1713867032982,-515.25988869,0.00011478,2]
[323278785,1713867032991,-500.0,0.00011478,2]
[323278786,1713867033000,-500.0,0.00011478,2]
[323278787,1713867033009,-500.0,0.00011478,2]
[323278788,1713867033019,-500.0,0.00011478,2]
[323278789,1713867033029,-169.99078475,0.00011478,2]
[323278790,1713867033037,-583.24,0.00011478,2]
[323278791,1713867033046,-546.97,0.00011478,2]
[323278792,1713867033055,-1064.13,0.00011478,2]
[323278793,1713867033064,-225.13936624,0.00011478,2]
[323278801,1713867037773,-917.42,0.00011477,2]
[323278802,1713867037784,-500.0,0.00011478,2]
[323278803,1713867037793,-500.0,0.00011478,2]
[323278804,1713867037802,-515.19,0.00011478,2]
[323278805,1713867037812,-500.0,0.00011478,2]
[323278806,1713867037821,-46.70520056,0.00011478,2]
[323278807,1713867037931,-453.29479944,0.00011478,2]
[323278808,1713867037940,-458.36910419,0.00011478,2]
[323278809,1713867037985,-41.63089581,0.00011478,2]
[323278810,1713867037995,-497.69127045,0.00011478,2]
[323278811,1713867038004,-503.74349775,0.00011478,2]
[323278812,1713867038013,-500.0,0.00011478,2]
[323278813,1713867038022,-500.0,0.00011478,2]
[323278814,1713867038030,-500.0,0.00011478,2]
[323278815,1713867038040,-500.0,0.00011478,2]
[323278816,1713867038049,-500.0,0.00011478,2]
[323278817,1713867038058,-679.64,0.00011478,2]
[323278818,1713867038067,-500.0,0.00011478,2]
[323278819,1713867038077,-501.34016465,0.00011478,2]
[323278820,1713867038086,-500.0,0.00011478,2]
[323278821,1713867038095,-500.0,0.00011478,2]
[323278822,1713867038105,-946.98,0.00011478,2]
[323278823,1713867038115,-500.0,0.00011478,2]
[323278824,1713867038124,-500.0,0.00011478,2]
[323278825,1713867038134,-500.0,0.00011478,2]
[323278826,1713867038144,-503.58412415,0.00011478,2]
[323278827,1713867038153,-500.0,0.00011478,2]
[323278828,1713867038162,-502.92718545,0.00011478,2]
[323278829,1713867038171,-500.0,0.00011478,2]
[323278830,1713867038180,-500.0,0.00011478,2]
[323278831,1713867038190,-498.3639751,0.00011478,2]
[323278832,1713867038203,-500.0,0.00011478,2]
[323278833,1713867038212,-500.0,0.00011478,2]
[323278834,1713867038222,-500.0,0.00011478,2]
[323278835,1713867038231,-500.0,0.00011478,2]
[323278836,1713867038240,-500.0,0.00011478,2]
[323278837,1713867038250,-500.0,0.00011478,2]
[323278838,1713867038259,-500.0,0.00011478,2]
[323278839,1713867038269,-500.0,0.00011478,2]
[323278840,1713867038280,-500.0,0.00011478,2]
[323278841,1713867038289,-500.0,0.00011478,2]
[323278842,1713867038299,-502.32250162,0.00011478,2]
[323278843,1713867038308,-500.0,0.00011478,2]
[323278844,1713867038318,-1591.48,0.00011478,2]
[323278845,1713867038327,-500.0,0.00011478,2]
[323278846,1713867038337,-502.03244005,0.00011478,2]
[323278847,1713867038347,-500.0,0.00011478,2]
[323278848,1713867038357,-500.0,0.00011478,2]
[323278849,1713867038366,-501.75128079,0.00011478,2]
[323278850,1713867038375,-448.79363045,0.00011478,2]
[323278851,1713867038384,-500.0,0.00011478,2]
[323278852,1713867038394,-500.0,0.00011478,2]
[323278853,1713867038403,-500.0,0.00011478,2]
[323278854,1713867038412,-500.0,0.00011478,2]
[323278855,1713867038422,-500.0,0.00011478,2]
[323278856,1713867038431,-500.0,0.00011478,2]
[323278857,1713867038440,-500.0,0.00011478,2]
[323278858,1713867038450,-500.0,0.00011478,2]
[323278859,1713867038459,-500.0,0.00011478,2]
[323278861,1713867038469,-500.0,0.00011478,2]
[323278863,1713867038478,-500.0,0.00011478,2]
[323278865,1713867038487,-1050.86,0.00011478,2]
[323278867,1713867038496,-502.95101655,0.00011478,2]
[323278869,1713867038505,-504.30162004,0.00011478,2]
[323278871,1713867038514,-1005.21,0.00011478,2]
[323278873,1713867038522,-500.0,0.00011478,2]
[323278875,1713867038531,-500.0,0.00011478,2]
[323278877,1713867038540,-1181.72,0.00011478,2]
[323278879,1713867038549,-500.0,0.00011478,2]
[323278881,1713867038558,-500.0,0.00011478,2]
[323278883,1713867038567,-500.0,0.00011478,2]
[323278885,1713867038576,-304.26435674,0.00011478,2]
[323278887,1713867038585,-503.71363099,0.00011478,2]
[323278889,1713867038594,-500.0,0.00011478,2]
[323278891,1713867038604,-500.0,0.00011478,2]
[323278893,1713867038612,-500.0,0.00011478,2]
[323278895,1713867038622,-862.59,0.00011478,2]
[323278897,1713867038631,-500.0,0.00011478,2]
[323278899,1713867038640,-500.0,0.00011478,2]
[323278901,1713867038649,-500.0,0.00011478,2]
[323278903,1713867038659,-500.0,0.00011478,2]
[323278905,1713867038668,-500.0,0.00011478,2]
[323278907,1713867038677,-500.0,0.00011478,2]
[323278909,1713867038686,-500.0,0.00011478,2]
[323278911,1713867038695,-500.0,0.00011478,2]
[323278913,1713867038704,-500.0,0.00011478,2]
[323278915,1713867038713,-282.75938724,0.00011478,2]
[323278917,1713867038722,-1058.24,0.00011478,2]
[323278919,1713867038730,-500.0,0.00011478,2]
[323278921,1713867038740,-500.0,0.00011478,2]
[323278923,1713867038748,-1198.53,0.00011478,2]
[323278924,1713867038757,-500.0,0.00011478,2]
[323278926,1713867038767,-500.0,0.00011478,2]
[323278928,1713867038777,-500.0,0.00011478,2]
[323278931,1713867038786,-500.0,0.00011478,2]
[323278932,1713867038795,-500.0,0.00011478,2]
[323278935,1713867038804,-500.0,0.00011478,2]
[323278936,1713867038814,-500.0,0.00011478,2]
[323278939,1713867038826,-500.0,0.00011478,2]
[323278941,1713867038838,-500.0,0.00011478,2]
[323278943,1713867038848,-500.0,0.00011478,2]